fUST/lending_fUST_20240713
["ID","MTS","AMOUNT","RATE_DAILY","PERIOD"]
[331916092,1720837746499,-197.20112817,0.00022579,2]
[331916093,1720837748463,191.80654326,0.00022579,2]
[331916098,1720837772489,277.56813412,0.00022579,2]
[331916256,1720837836814,1000.0,0.00022579,2]
[331916257,1720837837617,317.30214599,0.00022579,2]
[331916311,1720837843491,-220.92904465,0.00023,5]
[331916334,1720838103153,949.0,0.00017401,2]
[331916336,1720838242616,10413.33983442,0.00018899,2]
[331916341,1720838418196,612.3769053,0.00018899,2]
[331916342,1720838422211,172.03528246,0.00018899,2]
[331916343,1720838541747,243.0,0.0002525,120]
[331916347,1720838788682,1488.70176599,0.00018899,2]
[331916349,1720838839147,-407.14712605,0.00020438,2]
[331916350,1720838839170,-322.669294,0.00021096,2]
[331916351,1720838839193,-542.182561,0.00021964,2]
[331916352,1720838839215,-390.8381046,0.00022202,2]
[331916353,1720838839238,-625.29370161,0.00022398,2]
[331916354,1720838839260,-379.59849605,0.0002243,2]
[331916355,1720838839282,-1779.07095535,0.00023,5]
[331916356,1720838839304,-620.26468508,0.00023518,2]
[331916357,1720838839326,-1140.79435449,0.000244,2]
[331916358,1720838839349,-300.0,0.0002448,2]
[331916359,1720838839371,-300.0,0.0002448,2]
[331916360,1720838839393,-5384.06483533,0.00024481,2]
[331916361,1720838851107,-11510.57059869,0.00024481,2]
[331916362,1720838853132,-1482.47231599,0.00024481,2]
[331916364,1720838945104,-271.43141736,0.00022381,2]
[331916365,1720838986277,1000.0,0.00022381,2]
[331916366,1720838988415,12442.68268076,0.00022381,2]
[331916367,1720838988436,3931.50237219,0.00022381,2]
[331916416,1720839038467,-170.0,0.00023,2]
[331916418,1720839038479,-170.0,0.00023288,2]
[331916419,1720839038490,-170.0,0.00024164,2]
[331916420,1720839038501,-398.25571155,0.00024481,2]
[331916421,1720839038513,-2000.0,0.000245,7]
[331916422,1720839038524,-2000.0,0.00024557,2]
[331916423,1720839038536,-987.61862716,0.00024557,2]
[331916424,1720839038547,-998.19506017,0.00024557,2]
[331916425,1720839038559,-157.57293277,0.00024646,2]
[331916426,1720839038571,-300.0,0.00024646,2]
[331916427,1720839038584,-6579.38800148,0.00024647,3]
[331916428,1720839038597,-735.42752242,0.00024657,5]
[331916429,1720839038609,-504.79516039,0.00024657,2]
[331916430,1720839038622,-500.0,0.00024657,2]
[331916431,1720839038631,-500.0,0.00024657,2]
[331916432,1720839038641,-500.0,0.00024657,2]
[331916433,1720839038651,-153.31398,0.00024657,7]
[331916434,1720839038660,-504.71271313,0.00024657,2]
[331916435,1720839038675,-500.0,0.00024657,2]
[331916436,1720839038687,-507.51748579,0.00024657,2]
[331916437,1720839038700,-506.35995675,0.00024657,2]
[331916438,1720839038712,-500.0,0.00024657,2]
[331916439,1720839038725,-500.0,0.00024657,2]
[331916440,1720839038738,-500.0,0.00024657,2]
[331916441,1720839038751,-500.0,0.00024657,2]
[331916442,1720839038763,-500.0,0.00024657,2]
[331916443,1720839038774,-500.0,0.00024657,2]
[331916444,1720839038787,-151.0,0.00024657,7]
[331916445,1720839038798,-151.0,0.00024657,7]
[331916446,1720839038809,-152.06573,0.00024657,7]
[331916447,1720839038820,-500.0,0.00024657,2]
[331916448,1720839038832,-217.44814093,0.00024657,2]
[331916449,1720839038843,-500.0,0.00024657,2]
[331916450,1720839038854,-384.69425038,0.00024657,2]
[331916451,1720839038864,-500.0,0.00024657,2]
[331916452,1720839038874,-144.04511848,0.00024657,2]
[331916453,1720839039010,-355.95488152,0.00024657,2]
[331916454,1720839039021,-500.0,0.00024657,2]
[331916455,1720839039033,-500.0,0.00024657,2]
[331916456,1720839039044,-507.14353207,0.00024657,2]
[331916457,1720839039057,-506.92180172,0.00024657,2]
[331916458,1720839039067,-500.0,0.00024657,2]
[331916459,1720839039078,-500.0,0.00024657,2]
[331916460,1720839039088,-507.20190462,0.00024657,2]
[331916461,1720839039099,-314.15214133,0.00024657,2]
[331916462,1720839039110,-500.0,0.00024657,2]
[331916463,1720839039122,-510.9236636,0.00024657,2]
[331916464,1720839039133,-500.0,0.00024657,2]
[331916465,1720839039144,-500.0,0.00024657,2]
[331916466,1720839039155,-500.0,0.00024657,2]
[331916467,1720839039166,-500.0,0.00024657,2]
[331916468,1720839039177,-500.0,0.00024657,2]
[331916469,1720839039188,-500.0,0.00024657,2]
[331916470,1720839039199,-151.0,0.00024657,2]
[331916471,1720839039209,-151.0,0.00024657,2]
[331916472,1720839039220,-151.0,0.00024657,2]
[331916473,1720839039231,-264.408371,0.00024657,2]
[331916474,1720839039242,-500.0,0.00024657,2]
[331916475,1720839039253,-500.0,0.00024657,2]
[331916476,1720839039265,-500.0,0.00024657,2]
[331916477,1720839039275,-322.26255957,0.00024657,2]
[331916478,1720839039286,-510.29201685,0.00024657,2]
[331916479,1720839039297,-151.0,0.00024657,7]
[331916480,1720839039307,-151.0,0.00024657,7]
[331916481,1720839039318,-161.064182,0.00024657,7]
[331916482,1720839039330,-500.0,0.00024657,2]
[331916483,1720839039340,-506.27549819,0.00024657,2]
[331916484,1720839039352,-442.1232902,0.00024657,2]
[331916485,1720839039363,-500.0,0.00024657,2]
[331916486,1720839039374,-506.37313747,0.00024657,2]
[331916487,1720839039384,-506.58764587,0.00024657,2]
[331916488,1720839039394,-151.0,0.00024657,7]
[331916489,1720839039537,-151.0,0.00024657,7]
[331916490,1720839039557,-151.0,0.00024657,7]
[331916491,1720839039570,-169.13638,0.00024657,7]
[331916492,1720839039580,-151.0,0.00024657,7]
[331916493,1720839039589,-151.0,0.00024657,7]
[331916494,1720839039599,-151.0,0.00024657,7]
[331916495,1720839039608,-151.0,0.00024657,7]
[331916496,1720839039617,-151.0,0.00024657,7]
[331916497,1720839039628,-243.332545,0.00024657,7]
[331916498,1720839039637,-500.0,0.00024657,2]
[331916499,1720839039647,-519.6980098,0.00024657,2]
[331916500,1720839039656,-500.0,0.00024657,2]
[331916502,1720839039666,-500.0,0.00024657,2]
[331916504,1720839039675,-500.0,0.00024657,2]
[331916505,1720839039684,-515.93,0.00024657,2]
[331916506,1720839039694,-500.0,0.00024657,2]
[331916507,1720839039703,-500.0,0.00024657,2]
[331916508,1720839039713,-213.113281,0.00024657,7]
[331916509,1720839039723,-165.932985,0.00024657,7]
[331916510,1720839039732,-165.932985,0.00024657,7]
[331916511,1720839039742,-165.932985,0.00024657,7]
[331916512,1720839039751,-165.932985,0.00024657,7]
[331916513,1720839039761,-165.932985,0.00024657,7]
[331916514,1720839039772,-165.932985,0.00024657,7]
[331916515,1720839039782,-165.932985,0.00024657,7]
[331916516,1720839039791,-165.932985,0.00024657,7]
[331916517,1720839039804,-165.932985,0.00024657,7]
[331916518,1720839039813,-165.932985,0.00024657,7]
[331916519,1720839039822,-165.932985,0.00024657,7]
[331916520,1720839039831,-165.932985,0.00024657,7]
[331916521,1720839039840,-165.932985,0.00024657,7]
[331916522,1720839039850,-165.932985,0.00024657,7]
[331916523,1720839039859,-165.932985,0.00024657,7]
[331916524,1720839039868,-165.932985,0.00024657,7]
[331916525,1720839039878,-165.932985,0.00024657,7]
[331916526,1720839039887,-165.932985,0.00024657,7]
[331916527,1720839039897,-165.932985,0.00024657,7]
[331916528,1720839039907,-165.932988,0.00024657,7]
[331916529,1720839039928,-500.0,0.00024657,2]
[331916530,1720839039939,-552.65201069,0.00024657,2]
[331916531,1720839039949,-500.0,0.00024657,2]
[331916532,1720839039963,-500.0,0.00024657,2]
[331916533,1720839039973,-220.02871763,0.00024657,2]
[331916534,1720839039983,-500.0,0.00024657,2]
[331916535,1720839039992,-500.0,0.00024657,2]
[331916536,1720839040003,-248.472287,0.00024657,7]
[331916537,1720839040013,-248.472287,0.00024657,7]
[331916538,1720839040024,-248.472287,0.00024657,7]
[331916540,1720839040037,-248.472287,0.00024657,7]
[331916541,1720839040047,-248.472287,0.00024657,7]
[331916542,1720839040057,-248.472287,0.00024657,7]
[331916543,1720839040066,-248.472287,0.00024657,7]
[331916544,1720839040075,-248.472287,0.00024657,7]
[331916545,1720839040085,-248.472287,0.00024657,7]
[331916546,1720839040095,-248.472287,0.00024657,7]
[331916547,1720839040105,-248.472287,0.00024657,7]
[331916548,1720839040115,-248.472287,0.00024657,7]
[331916549,1720839040125,-248.472287,0.00024657,7]
[331916550,1720839040135,-248.472287,0.00024657,7]
[331916551,1720839040145,-248.472287,0.00024657,7]
[331916552,1720839040155,-248.472287,0.00024657,7]
[331916553,1720839040165,-248.472287,0.00024657,7]
[331916555,1720839040174,-248.472287,0.00024657,7]
[331916556,1720839040184,-248.472282,0.00024657,7]
[331916558,1720839040195,-755.94,0.00024657,2]
[331916559,1720839040205,-154.524284,0.00024657,7]
[331916560,1720839040216,-404.48661175,0.00024657,2]
[331916561,1720839040226,-151.0,0.00024657,7]
[331916562,1720839040235,-151.0,0.00024657,7]
[331916563,1720839040246,-151.0,0.00024657,7]
[331916564,1720839040255,-151.0,0.00024657,7]
[331916565,1720839040265,-151.0,0.00024657,7]
[331916567,1720839040275,-151.0,0.00024657,7]
[331916569,1720839040286,-151.0,0.00024657,7]
[331916570,1720839040295,-151.0,0.00024657,7]
[331916571,1720839040305,-151.0,0.00024657,7]
[331916572,1720839040315,-151.0,0.00024657,7]
[331916573,1720839040325,-151.0,0.00024657,7]
[331916574,1720839040335,-151.0,0.00024657,7]
[331916575,1720839040344,-151.0,0.00024657,7]
[331916576,1720839040354,-177.767766,0.00024657,7]
[331916577,1720839040364,-500.0,0.00024657,2]
[331916578,1720839040374,-511.28550915,0.00024657,2]
[331916579,1720839040383,-151.0,0.00024657,7]
[331916580,1720839040393,-500.0,0.00024657,2]
[331916581,1720839040403,-151.0,0.00024657,7]
[331916582,1720839040413,-297.015045,0.00024657,7]
[331916583,1720839040422,-500.0,0.00024657,2]
[331916584,1720839040432,-541.61,0.00024657,2]
[331916585,1720839040442,-502.64997295,0.00024657,2]
[331916586,1720839040451,-151.74191,0.00024657,7]
[331916587,1720839040461,-295.226594,0.00024657,7]
[331916588,1720839040470,-151.0,0.00024657,7]
[331916589,1720839040480,-201.788349,0.00024657,7]
[331916590,1720839040489,-506.10666881,0.00024657,2]
[331916591,1720839040500,-500.0,0.00024657,2]
[331916592,1720839040510,-500.0,0.00024657,2]
[331916593,1720839040520,-500.0,0.00024657,2]
[331916594,1720839040530,-500.0,0.00024657,2]
[331916595,1720839040540,-500.0,0.00024657,2]
[331916596,1720839040551,-500.0,0.00024657,2]
[331916598,1720839040560,-506.29897801,0.00024657,2]
[331916599,1720839040570,-508.47996634,0.00024657,2]
[331916601,1720839040579,-160.338958,0.00024657,5]
[331916602,1720839040588,-500.0,0.00024657,2]
[331916603,1720839040597,-280.761967,0.00024657,4]
[331916604,1720839040607,-500.0,0.00024657,2]
[331916605,1720839040617,-504.88278218,0.00024657,2]
[331916606,1720839040627,-500.0,0.00024657,2]
[331916607,1720839040636,-500.0,0.00024657,2]
[331916608,1720839040646,-500.0,0.00024657,2]
[331916609,1720839040655,-500.0,0.00024657,2]
[331916610,1720839040665,-507.96292901,0.00024657,2]
[331916611,1720839040674,-500.0,0.00024657,2]
[331916612,1720839040684,-505.90496521,0.00024657,2]
[331916613,1720839040693,-500.0,0.00024657,2]
[331916614,1720839040703,-500.0,0.00024657,2]
[331916615,1720839040712,-500.0,0.00024657,2]
[331916616,1720839040722,-500.0,0.00024657,2]
[331916617,1720839040731,-500.0,0.00024657,2]
[331916618,1720839040741,-500.0,0.00024657,2]
[331916619,1720839040751,-507.0992803,0.00024657,2]
[331916620,1720839040760,-500.0,0.00024657,2]
[331916621,1720839040770,-500.0,0.00024657,2]
[331916622,1720839040780,-500.0,0.00024657,2]
[331916623,1720839040789,-519.23,0.00024657,2]
[331916624,1720839040799,-519.23,0.00024657,2]
[331916625,1720839040808,-519.23,0.00024657,2]
[331916626,1720839040817,-519.23,0.00024657,2]
[331916627,1720839040827,-504.54355431,0.00024657,2]
[331916628,1720839040836,-519.23,0.00024657,2]
[331916629,1720839040846,-505.55399746,0.00024657,2]
[331916630,1720839040856,-519.23,0.00024657,2]
[331916631,1720839040867,-519.23,0.00024657,2]
[331916632,1720839040876,-519.23,0.00024657,2]
[331916633,1720839040886,-519.23,0.00024657,2]
[331916634,1720839040895,-519.23,0.00024657,2]
[331916635,1720839040905,-500.0,0.00024657,2]
[331916636,1720839040914,-519.23,0.00024657,2]
[331916637,1720839040924,-519.23,0.00024657,2]
[331916638,1720839040933,-519.23,0.00024657,2]
[331916639,1720839040942,-519.23,0.00024657,2]
[331916640,1720839040951,-519.23,0.00024657,2]
[331916641,1720839040965,-519.23,0.00024657,2]
[331916642,1720839040975,-1351.27,0.00024657,2]
[331916643,1720839040984,-519.23,0.00024657,2]
[331916644,1720839040993,-519.23,0.00024657,2]
[331916645,1720839041003,-519.23,0.00024657,2]
[331916646,1720839041012,-519.23,0.00024657,2]
[331916647,1720839041023,-519.23,0.00024657,2]
[331916648,1720839041034,-519.23,0.00024657,2]
[331916649,1720839041043,-519.23,0.00024657,2]
[331916650,1720839041053,-519.31746765,0.00024657,2]
[331916651,1720839041062,-500.0,0.00024657,2]
[331916652,1720839041071,-550.12,0.00024657,2]
[331916653,1720839041080,-500.0,0.00024657,2]
[331916654,1720839041089,-500.0,0.00024657,2]
[331916655,1720839041098,-500.0,0.00024657,2]
[331916656,1720839041107,-506.8315048,0.00024657,2]
[331916657,1720839041116,-500.0,0.00024657,2]
[331916658,1720839041126,-500.0,0.00024657,2]
[331916659,1720839041135,-578.56124404,0.00024657,2]
[331916660,1720839041145,-515.859116,0.00024657,2]
[331916661,1720839041154,-500.0,0.00024657,2]
[331916662,1720839041163,-500.0,0.00024657,2]
[331916663,1720839041174,-500.0,0.00024657,2]
[331916664,1720839041183,-500.0,0.00024657,2]
[331916665,1720839041193,-151.0,0.00024657,7]
[331916666,1720839041202,-199.809748,0.00024657,7]
[331916667,1720839041212,-540.60538824,0.00024657,2]
[331916668,1720839041222,-500.0,0.00024657,2]
[331916669,1720839041231,-500.0,0.00024657,2]
[331916670,1720839041241,-500.0,0.00024657,2]
[331916671,1720839041250,-500.0,0.00024657,2]
[331916672,1720839041260,-505.45739212,0.00024657,2]
[331916673,1720839041270,-500.0,0.00024657,2]
[331916674,1720839041279,-336.563926,0.00024657,7]
[331916675,1720839041289,-336.563926,0.00024657,7]
[331916676,1720839041298,-336.563926,0.00024657,7]
[331916677,1720839041307,-336.563926,0.00024657,7]
[331916678,1720839041316,-500.0,0.00024657,2]
[331916679,1720839041326,-336.563926,0.00024657,7]
[331916680,1720839041336,-336.563926,0.00024657,7]
[331916681,1720839041345,-336.563926,0.00024657,7]
[331916682,1720839041354,-336.563926,0.00024657,7]
[331916683,1720839041364,-336.563926,0.00024657,7]
[331916684,1720839041374,-151.0,0.00024657,7]
[331916685,1720839041383,-336.563926,0.00024657,7]
[331916686,1720839041393,-184.852987,0.00024657,7]
[331916687,1720839041402,-336.563926,0.00024657,7]
[331916688,1720839041412,-336.563926,0.00024657,7]
[331916689,1720839041421,-336.563926,0.00024657,7]
[331916690,1720839041431,-336.563926,0.00024657,7]
[331916691,1720839041440,-336.563926,0.00024657,7]
[331916692,1720839041450,-336.563926,0.00024657,7]
[331916693,1720839041459,-336.563926,0.00024657,7]
[331916694,1720839041469,-336.563926,0.00024657,7]
[331916695,1720839041478,-336.563926,0.00024657,7]
[331916696,1720839041487,-336.563916,0.00024657,7]
[331916697,1720839041496,-151.0,0.00024657,7]
[331916698,1720839041506,-151.0,0.00024657,7]
[331916699,1720839041515,-151.0,0.00024657,7]
[331916700,1720839041524,-154.80286,0.00024657,7]
[331916701,1720839041534,-18599.28,0.00024657,2]
[331916702,1720839041543,-500.0,0.00024657,2]
[331916703,1720839041552,-500.0,0.00024657,2]
[331916704,1720839041562,-500.0,0.00024657,2]
[331916705,1720839041573,-506.91765689,0.00024657,2]
[331916706,1720839041582,-582.30361734,0.00024657,2]
[331916707,1720839041591,-500.0,0.00024657,2]
[331916708,1720839041601,-500.0,0.00024657,2]
[331916709,1720839041611,-2058.93,0.00024657,2]
[331916710,1720839041620,-505.83248446,0.00024657,2]
[331916711,1720839041630,-500.0,0.00024657,2]
[331916712,1720839041639,-544.94418373,0.00024657,2]
[331916713,1720839041648,-500.0,0.00024657,2]
[331916714,1720839041659,-500.0,0.00024657,2]
[331916715,1720839041668,-500.0,0.00024657,2]
[331916716,1720839041677,-500.0,0.00024657,2]
[331916717,1720839041686,-504.0918842,0.00024657,2]
[331916718,1720839041695,-500.0,0.00024657,2]
[331916719,1720839041705,-535.21285038,0.00024657,2]
[331916720,1720839041714,-503.32332182,0.00024657,2]
[331916721,1720839041723,-1158.99,0.00024657,2]
[331916722,1720839041733,-644.4,0.00024657,2]
[331916723,1720839041742,-362.634665,0.00024657,7]
[331916724,1720839041752,-362.634665,0.00024657,7]
[331916725,1720839041761,-500.0,0.00024657,2]
[331916726,1720839041771,-362.634665,0.00024657,7]
[331916727,1720839041780,-515.6194065,0.00024657,2]
[331916728,1720839041790,-362.634665,0.00024657,7]
[331916729,1720839041799,-362.634665,0.00024657,7]
[331916730,1720839041808,-362.634665,0.00024657,7]
[331916731,1720839041818,-362.634665,0.00024657,7]
[331916732,1720839041827,-362.634665,0.00024657,7]
[331916733,1720839041837,-362.634665,0.00024657,7]
[331916734,1720839041847,-151.0,0.00024657,7]
[331916735,1720839041857,-362.634665,0.00024657,7]
[331916736,1720839041866,-151.0,0.00024657,7]
[331916737,1720839041876,-362.634665,0.00024657,7]
[331916738,1720839041885,-151.0,0.00024657,7]
[331916739,1720839041895,-151.0,0.00024657,7]
[331916740,1720839041904,-362.634665,0.00024657,7]
[331916741,1720839041913,-151.0,0.00024657,7]
[331916742,1720839041923,-362.634665,0.00024657,7]
[331916743,1720839041932,-151.0,0.00024657,7]
[331916744,1720839041942,-500.0,0.00024657,2]
[331916745,1720839041951,-362.634665,0.00024657,7]
[331916746,1720839041964,-151.0,0.00024657,7]
[331916747,1720839041975,-362.634665,0.00024657,7]
[331916748,1720839041984,-151.0,0.00024657,7]
[331916749,1720839041993,-362.634665,0.00024657,7]
[331916750,1720839042003,-221.18983,0.00024657,7]
[331916751,1720839042013,-362.634665,0.00024657,7]
[331916752,1720839042023,-502.75939391,0.00024657,2]
[331916753,1720839042033,-362.634665,0.00024657,7]
[331916754,1720839042044,-362.634665,0.00024657,7]
[331916755,1720839042054,-362.634667,0.00024657,7]
[331916756,1720839042064,-500.0,0.00024657,2]
[331916757,1720839042074,-301.53449734,0.00024657,2]
[331916758,1720839042083,-531.540738,0.00024657,2]
[331916759,1720839042093,-500.0,0.00024657,2]
[331916760,1720839042103,-500.0,0.00024657,2]
[331916761,1720839042113,-500.0,0.00024657,2]
[331916762,1720839042123,-211.624272,0.00024657,7]
[331916763,1720839042132,-500.0,0.00024657,2]
[331916764,1720839042142,-151.0,0.00024657,7]
[331916765,1720839042151,-151.0,0.00024657,7]
[331916766,1720839042161,-151.0,0.00024657,7]
[331916767,1720839042170,-151.0,0.00024657,7]
[331916768,1720839042179,-294.3903744,0.00024657,2]
[331916769,1720839042189,-151.0,0.00024657,7]
[331916770,1720839042199,-151.0,0.00024657,7]
[331916771,1720839042208,-151.0,0.00024657,7]
[331916772,1720839042218,-151.0,0.00024657,7]
[331916773,1720839042228,-302.09237634,0.00024657,2]
[331916774,1720839042237,-151.0,0.00024657,7]
[331916775,1720839042247,-500.0,0.00024657,2]
[331916776,1720839042258,-151.0,0.00024657,7]
[331916777,1720839042268,-151.0,0.00024657,7]
[331916778,1720839042279,-151.0,0.00024657,7]
[331916779,1720839042288,-151.0,0.00024657,7]
[331916780,1720839042298,-151.0,0.00024657,7]
[331916781,1720839042309,-242.658439,0.00024657,7]
[331916782,1720839042319,-500.0,0.00024657,2]
[331916783,1720839042329,-502.71001997,0.00024657,2]
[331916784,1720839042339,-500.0,0.00024657,2]
[331916785,1720839042348,-894.15,0.00024657,2]
[331916786,1720839042358,-500.0,0.00024657,2]
[331916787,1720839042368,-509.33706235,0.00024657,2]
[331916788,1720839042378,-514.15753066,0.00024657,2]
[331916789,1720839042387,-637.357024,0.00024657,7]
[331916790,1720839042397,-637.357024,0.00024657,7]
[331916791,1720839042407,-637.357024,0.00024657,7]
[331916792,1720839042418,-637.357024,0.00024657,7]
[331916793,1720839042427,-637.357024,0.00024657,7]
[331916794,1720839042437,-637.357024,0.00024657,7]
[331916795,1720839042447,-637.357024,0.00024657,7]
[331916796,1720839042456,-637.357024,0.00024657,7]
[331916797,1720839042465,-637.357024,0.00024657,7]
[331916798,1720839042476,-637.357024,0.00024657,7]
[331916799,1720839042485,-637.357024,0.00024657,7]
[331916800,1720839042495,-521.79128196,0.00024657,2]
[331916801,1720839042505,-637.357024,0.00024657,7]
[331916802,1720839042515,-637.357024,0.00024657,7]
[331916803,1720839042525,-500.0,0.00024657,2]
[331916804,1720839042535,-637.357024,0.00024657,7]
[331916805,1720839042545,-637.357024,0.00024657,7]
[331916806,1720839042555,-500.0,0.00024657,2]
[331916807,1720839042564,-637.357024,0.00024657,7]
[331916808,1720839042575,-637.357024,0.00024657,7]
[331916809,1720839042585,-637.357024,0.00024657,7]
[331916810,1720839042594,-504.56889349,0.00024657,2]
[331916811,1720839042605,-637.357024,0.00024657,7]
[331916812,1720839042615,-637.357034,0.00024657,7]
[331916813,1720839042626,-313.816559,0.00024657,7]
[331916814,1720839042635,-313.816559,0.00024657,7]
[331916815,1720839042645,-313.816559,0.00024657,7]
[331916816,1720839042655,-313.816559,0.00024657,7]
[331916817,1720839042665,-313.816559,0.00024657,7]
[331916818,1720839042675,-500.0,0.00024657,2]
[331916819,1720839042684,-313.816559,0.00024657,7]
[331916820,1720839042695,-313.816559,0.00024657,7]
[331916821,1720839042706,-313.816559,0.00024657,7]
[331916822,1720839042716,-313.816559,0.00024657,7]
[331916823,1720839042726,-500.0,0.00024657,2]
[331916824,1720839042736,-500.0,0.00024657,2]
[331916825,1720839042747,-313.816559,0.00024657,7]
[331916826,1720839042757,-505.5237899,0.00024657,2]
[331916828,1720839042767,-313.816559,0.00024657,7]
[331916830,1720839042777,-313.816559,0.00024657,7]
[331916832,1720839042786,-313.816559,0.00024657,7]
[331916834,1720839042796,-313.816559,0.00024657,7]
[331916849,1720839042918,-500.0,0.00024657,2]
[331916851,1720839042932,-313.816559,0.00024657,7]
[331916853,1720839042942,-264.38089777,0.00024657,2]
[331916855,1720839042951,-313.816559,0.00024657,7]
[331916857,1720839042968,-556.58695521,0.00024657,2]
[331916858,1720839042977,-508.35822398,0.00024657,2]
[331916859,1720839042987,-313.816559,0.00024657,7]
[331916860,1720839042996,-313.816559,0.00024657,7]
[331916861,1720839043007,-313.816559,0.00024657,7]
[331916862,1720839043017,-313.816551,0.00024657,7]
[331916863,1720839043027,-500.0,0.00024657,2]
[331916864,1720839043038,-151.0,0.00024658,2]
[331916865,1720839043048,-151.0,0.00024658,2]
[331916866,1720839043061,-151.0,0.00024658,2]
[331916867,1720839043071,-151.0,0.00024658,2]
[331916868,1720839043080,-151.0,0.00024658,2]
[331916869,1720839043089,-151.0,0.00024658,2]
[331916870,1720839043098,-165.097215,0.00024658,2]
[331916871,1720839043108,-987.61862714,0.00024763,2]
[331916872,1720839043117,-289.98226813,0.00024831,3]
[331916873,1720839043126,-174.0,0.000249,4]
[331916874,1720839043135,-6579.38800148,0.00024921,3]
[331916875,1720839043145,-162.95972327,0.0002493,2]
[331916876,1720839043156,-500.0,0.0002493,2]
[331916877,1720839043165,-500.0,0.00024931,2]
[331916878,1720839043178,-500.0,0.00024931,2]
[331916879,1720839043187,-500.0,0.00024931,2]
[331916880,1720839043197,-505.61207555,0.00024931,2]
[331916881,1720839043207,-500.0,0.00024931,2]
[331916882,1720839043218,-500.0,0.00024931,2]
[331916883,1720839043227,-509.88182032,0.00024931,2]
[331916884,1720839043237,-500.0,0.00024931,2]
[331916885,1720839043246,-508.01643345,0.00024931,2]
[331916886,1720839043256,-500.0,0.00024931,2]
[331916887,1720839043266,-500.0,0.00024931,2]
[331916888,1720839043277,-500.0,0.00024931,2]
[331916889,1720839043287,-500.0,0.00024931,2]
[331916890,1720839043296,-500.0,0.00024931,2]
[331916891,1720839043306,-500.0,0.00024931,2]
[331916892,1720839043316,-500.0,0.00024931,2]
[331916893,1720839043327,-500.0,0.00024931,2]
[331916894,1720839043338,-500.0,0.00024931,2]
[331916895,1720839043348,-547.54066079,0.00024931,2]
[331916896,1720839043358,-500.0,0.00024931,2]
[331916897,1720839043368,-500.0,0.00024931,2]
[331916898,1720839043377,-500.0,0.00024931,2]
[331916899,1720839043388,-500.0,0.00024931,2]
[331916900,1720839043398,-500.0,0.00024931,2]
[331916901,1720839043407,-500.0,0.00024931,2]
[331916902,1720839043417,-500.0,0.00024931,2]
[331916903,1720839043428,-500.0,0.00024931,2]
[331916904,1720839043437,-500.0,0.00024931,2]
[331916905,1720839043449,-500.0,0.00024931,2]
[331916906,1720839043459,-500.0,0.00024931,2]
[331916907,1720839043469,-500.0,0.00024931,2]
[331916908,1720839043478,-500.0,0.00024931,2]
[331916909,1720839043488,-500.0,0.00024931,2]
[331916910,1720839043497,-500.0,0.00024931,2]
[331916911,1720839043507,-515.93,0.00024931,2]
[331916912,1720839043517,-500.0,0.00024931,2]
[331916913,1720839043530,-500.0,0.00024931,2]
[331916914,1720839043540,-500.0,0.00024931,2]
[331916915,1720839043553,-500.0,0.00024931,2]
[331916916,1720839043562,-500.0,0.00024931,2]
[331916917,1720839043571,-500.0,0.00024931,2]